[Event "*** Titled Tuesday Blitz"]
[Site "Chess.com"]
[Date "2020.11.10"]
[Round "6"]
[White "Keures"]
[Black "Gerodot71"]
[Result "0-1"]
[WhiteElo "2337"]
[BlackElo "2481"]
[TimeControl "180+1"]
[EndTime "11:10:21 PST"]
[Termination "Gerodot71 won by resignation"]

1. d4 {[%clk 0:02:59.8]} 1... Nf6 {[%clk 0:02:57.9]} 2. c4 {[%clk 0:02:58.2]}
2... e6 {[%clk 0:02:57.2]} 3. Nc3 {[%clk 0:02:58]} 3... Bb4 {[%clk 0:02:56]} 4.
Qc2 {[%clk 0:02:58.2]} 4... c5 {[%clk 0:02:38.6]} 5. a3 {[%clk 0:02:56.8]} 5...
Bxc3+ {[%clk 0:02:36.6]} 6. Qxc3 {[%clk 0:02:56.5]} 6... cxd4 {[%clk 0:02:35.5]}
7. Qxd4 {[%clk 0:02:57.4]} 7... Nc6 {[%clk 0:02:36.4]} 8. Qc3 {[%clk 0:02:56.7]}
8... O-O {[%clk 0:02:34.9]} 9. Nf3 {[%clk 0:02:53.8]} 9... d5 {[%clk 0:02:31.3]}
10. Bg5 {[%clk 0:02:51.6]} 10... d4 {[%clk 0:02:23]} 11. Qc2 {[%clk 0:02:41.4]}
11... h6 {[%clk 0:02:19.6]} 12. Bh4 {[%clk 0:02:37.5]} 12... e5 {[%clk
0:02:18.2]} 13. e3 {[%clk 0:02:27.5]} 13... Re8 {[%clk 0:01:40.3]} 14. Rd1
{[%clk 0:02:13.5]} 14... g5 {[%clk 0:01:24.4]} 15. Bg3 {[%clk 0:02:10.7]} 15...
Qb6 {[%clk 0:01:22.1]} 16. Be2 {[%clk 0:01:51.9]} 16... Bg4 {[%clk 0:01:07.1]}
17. c5 {[%clk 0:01:42]} 17... Qa5+ {[%clk 0:00:51.5]} 18. b4 {[%clk 0:01:34.4]}
18... Qxa3 {[%clk 0:00:51.3]} 19. O-O {[%clk 0:01:22.1]} 19... Bxf3 {[%clk
0:00:50.8]} 20. gxf3 {[%clk 0:01:12.7]} 20... dxe3 {[%clk 0:00:43]} 21. Qf5
{[%clk 0:00:51.2]} 21... Kg7 {[%clk 0:00:36.8]} 22. b5 {[%clk 0:00:44]} 22...
Nd4 {[%clk 0:00:34.3]} 23. Rxd4 {[%clk 0:00:40.9]} 23... exd4 {[%clk 0:00:32.5]}
24. Be5 {[%clk 0:00:29.9]} 24... Rxe5 {[%clk 0:00:22.8]} 25. Qxe5 {[%clk
0:00:30.8]} 25... exf2+ {[%clk 0:00:21.3]} 26. Rxf2 {[%clk 0:00:28.2]} 26... Qe3
{[%clk 0:00:20.5]} 27. Qc7 {[%clk 0:00:24.5]} 27... d3 {[%clk 0:00:17.7]} 28.
Bf1 {[%clk 0:00:17.8]} 28... d2 {[%clk 0:00:17.4]} 29. Qd6 {[%clk 0:00:16.6]}
29... Rc8 {[%clk 0:00:11.6]} 30. Qxd2 {[%clk 0:00:14.8]} 30... Qxd2 {[%clk
0:00:11.4]} 31. Rxd2 {[%clk 0:00:15.7]} 31... Rxc5 {[%clk 0:00:12.1]} 32. Kf2
{[%clk 0:00:16]} 32... g4 {[%clk 0:00:10.4]} 33. Ra2 {[%clk 0:00:15.4]} 33...
Rf5 {[%clk 0:00:09.5]} 34. Rxa7 {[%clk 0:00:12.8]} 34... Rxf3+ {[%clk
0:00:09.2]} 35. Kg2 {[%clk 0:00:13.2]} 35... Ne4 {[%clk 0:00:08.5]} 36. Bc4
{[%clk 0:00:10.2]} 36... Nd6 {[%clk 0:00:07.9]} 37. Bd5 {[%clk 0:00:09.7]} 37...
Rf4 {[%clk 0:00:06.1]} 38. Bxb7 {[%clk 0:00:09.4]} 38... Nxb5 {[%clk 0:00:06.6]}
39. Ra5 {[%clk 0:00:08.2]} 39... Nd6 {[%clk 0:00:06.4]} 40. Bd5 {[%clk
0:00:08.1]} 40... h5 {[%clk 0:00:06.1]} 41. Ra6 {[%clk 0:00:06.7]} 41... Rf6
{[%clk 0:00:05.9]} 42. Kg3 {[%clk 0:00:06.3]} 42... Nf5+ {[%clk 0:00:05.9]} 0-1

[Event "*** Titled Tuesday Blitz"]
[Site "Chess.com"]
[Date "2020.11.10"]
[Round "6"]
[White "elamier"]
[Black "rududuyk"]
[Result "1-0"]
[WhiteElo "2348"]
[BlackElo "2171"]
[TimeControl "180+1"]
[EndTime "11:10:25 PST"]
[Termination "elamier won on time"]

1. e4 {[%clk 0:03:00.9]} 1... e6 {[%clk 0:02:59.5]} 2. d4 {[%clk 0:03:00.2]}
2... d5 {[%clk 0:03:00.1]} 3. e5 {[%clk 0:03:00.6]} 3... c5 {[%clk 0:02:59.8]}
4. c3 {[%clk 0:03:00.8]} 4... Nc6 {[%clk 0:03:00.3]} 5. Nf3 {[%clk 0:03:01.3]}
5... Bd7 {[%clk 0:03:01]} 6. a3 {[%clk 0:03:01.5]} 6... f6 {[%clk 0:02:57.3]} 7.
Bd3 {[%clk 0:03:00.1]} 7... fxe5 {[%clk 0:02:42.8]} 8. dxe5 {[%clk 0:02:58.9]}
8... g6 {[%clk 0:02:40.1]} 9. h4 {[%clk 0:02:50]} 9... Bg7 {[%clk 0:02:19.2]}
10. Qe2 {[%clk 0:02:47.7]} 10... Nge7 {[%clk 0:02:09.7]} 11. h5 {[%clk 0:02:46]}
11... Qc7 {[%clk 0:02:01.3]} 12. hxg6 {[%clk 0:02:43.6]} 12... hxg6 {[%clk
0:01:58.3]} 13. Rxh8+ {[%clk 0:02:39.5]} 13... Bxh8 {[%clk 0:01:59.2]} 14. Bf4
{[%clk 0:02:32.5]} 14... O-O-O {[%clk 0:01:56]} 15. Nbd2 {[%clk 0:02:30]} 15...
Rf8 {[%clk 0:01:34.4]} 16. Bg3 {[%clk 0:02:27.5]} 16... Nf5 {[%clk 0:01:34.2]}
17. Bh2 {[%clk 0:02:12.2]} 17... Bg7 {[%clk 0:01:21.2]} 18. O-O-O {[%clk
0:02:07.8]} 18... Rh8 {[%clk 0:01:20.5]} 19. Bf4 {[%clk 0:02:01.9]} 19... Na5
{[%clk 0:01:08.2]} 20. Re1 {[%clk 0:01:57]} 20... Ba4 {[%clk 0:01:04.1]} 21. g4
{[%clk 0:01:48.9]} 21... Ne7 {[%clk 0:00:56.2]} 22. Ng5 {[%clk 0:01:47.8]} 22...
Qb6 {[%clk 0:00:51.1]} 23. b4 {[%clk 0:01:17.4]} 23... Nb3+ {[%clk 0:00:40.1]}
24. Nxb3 {[%clk 0:01:15.1]} 24... Bxb3 {[%clk 0:00:40.2]} 25. Kb2 {[%clk
0:01:11.8]} 25... Ba4 {[%clk 0:00:34.5]} 26. Nf7 {[%clk 0:01:03.3]} 26... Rf8
{[%clk 0:00:33.6]} 27. Nd6+ {[%clk 0:01:02.7]} 27... Kb8 {[%clk 0:00:33.8]} 28.
Bg3 {[%clk 0:01:02.4]} 28... d4 {[%clk 0:00:28]} 29. Nc4 {[%clk 0:00:28.4]}
29... Qc7 {[%clk 0:00:27.4]} 30. cxd4 {[%clk 0:00:25.2]} 30... cxb4 {[%clk
0:00:27.2]} 31. axb4 {[%clk 0:00:21.3]} 31... Nd5 {[%clk 0:00:23]} 32. Qd2
{[%clk 0:00:18.2]} 32... Bb5 {[%clk 0:00:16.5]} 33. Rc1 {[%clk 0:00:17.1]} 33...
Qe7 {[%clk 0:00:16.5]} 34. Nd6 {[%clk 0:00:16.6]} 34... Bxd3 {[%clk 0:00:16.6]}
35. Qxd3 {[%clk 0:00:15.1]} 35... Bh6 {[%clk 0:00:14.8]} 36. Rc5 {[%clk
0:00:12.7]} 36... Nb6 {[%clk 0:00:12.6]} 37. Qc2 {[%clk 0:00:08.8]} 37... Qg5
{[%clk 0:00:08.5]} 38. d5 {[%clk 0:00:07.1]} 38... Qxg4 {[%clk 0:00:08]} 39.
dxe6 {[%clk 0:00:05.7]} 39... Qxb4+ {[%clk 0:00:08]} 40. Ka2 {[%clk 0:00:02.8]}
40... a5 {[%clk 0:00:04.5]} 41. e7 {[%clk 0:00:01.6]} 41... Rxf2 {[%clk
0:00:01.8]} 42. Bxf2 {[%clk 0:00:01.3]} 1-0

[Event "*** Titled Tuesday Blitz"]
[Site "Chess.com"]
[Date "2020.11.10"]
[Round "6"]
[White "Sibelephant"]
[Black "bascheyaro"]
[Result "1-0"]
[WhiteElo "3083"]
[BlackElo "2749"]
[TimeControl "180+1"]
[EndTime "11:10:27 PST"]
[Termination "Sibelephant won by resignation"]

1. d4 {[%clk 0:03:00]} 1... d5 {[%clk 0:03:00]} 2. Nf3 {[%clk 0:02:59.9]} 2...
Bf5 {[%clk 0:02:59.8]} 3. Nh4 {[%clk 0:02:57]} 3... Bg6 {[%clk 0:02:59.6]} 4.
Nxg6 {[%clk 0:02:54.8]} 4... hxg6 {[%clk 0:03:00.5]} 5. Qd3 {[%clk 0:02:54.8]}
5... c6 {[%clk 0:02:58]} 6. c4 {[%clk 0:02:52.8]} 6... Nf6 {[%clk 0:02:57.8]} 7.
g3 {[%clk 0:02:52]} 7... e6 {[%clk 0:02:54.2]} 8. Bg2 {[%clk 0:02:52.2]} 8...
Nbd7 {[%clk 0:02:54.3]} 9. O-O {[%clk 0:02:52.4]} 9... Bd6 {[%clk 0:02:52.3]}
10. Nd2 {[%clk 0:02:49.3]} 10... a6 {[%clk 0:02:48.3]} 11. Rd1 {[%clk
0:02:47.5]} 11... Qa5 {[%clk 0:02:45.1]} 12. a3 {[%clk 0:02:22.8]} 12... Rd8
{[%clk 0:02:43.7]} 13. b4 {[%clk 0:02:19.5]} 13... Qc7 {[%clk 0:02:43.6]} 14.
Bb2 {[%clk 0:02:12.2]} 14... O-O {[%clk 0:02:37]} 15. Rac1 {[%clk 0:02:12]}
15... Qb8 {[%clk 0:02:36.3]} 16. e4 {[%clk 0:02:01.6]} 16... dxe4 {[%clk
0:02:34.3]} 17. Nxe4 {[%clk 0:02:01.9]} 17... Nxe4 {[%clk 0:02:34.3]} 18. Qxe4
{[%clk 0:01:56.9]} 18... e5 {[%clk 0:02:28.1]} 19. d5 {[%clk 0:01:32.2]} 19...
Nf6 {[%clk 0:02:27.7]} 20. Qe2 {[%clk 0:01:31.3]} 20... cxd5 {[%clk 0:02:27.8]}
21. Bxd5 {[%clk 0:01:31.4]} 21... Nxd5 {[%clk 0:02:13.8]} 22. Rxd5 {[%clk
0:01:30.9]} 22... Bc7 {[%clk 0:02:14]} 23. Rcd1 {[%clk 0:01:22.8]} 23... Rxd5
{[%clk 0:02:02.3]} 24. Rxd5 {[%clk 0:01:22.8]} 24... f6 {[%clk 0:02:02.5]} 25.
Qg4 {[%clk 0:01:17.1]} 25... Qe8 {[%clk 0:01:45.3]} 26. c5 {[%clk 0:01:14.7]}
26... Qc6 {[%clk 0:01:39.2]} 27. Rd2 {[%clk 0:00:55]} 27... f5 {[%clk
0:01:37.4]} 28. Qc4+ {[%clk 0:00:54.8]} 28... Kh7 {[%clk 0:01:37.1]} 29. Qd5
{[%clk 0:00:44.3]} 29... Rd8 {[%clk 0:01:12.7]} 30. Qxc6 {[%clk 0:00:44.1]}
30... bxc6 {[%clk 0:01:13.6]} 31. Rxd8 {[%clk 0:00:44.2]} 31... Bxd8 {[%clk
0:01:14.5]} 32. Bxe5 {[%clk 0:00:44.6]} 32... g5 {[%clk 0:01:15.1]} 33. f3
{[%clk 0:00:41.4]} 33... g4 {[%clk 0:01:09.8]} 34. Kf2 {[%clk 0:00:41.1]} 34...
gxf3 {[%clk 0:00:44.6]} 35. a4 {[%clk 0:00:40.8]} 35... g5 {[%clk 0:00:40.1]}
36. Kxf3 {[%clk 0:00:39.6]} 36... Kg6 {[%clk 0:00:35.9]} 37. b5 {[%clk
0:00:36.8]} 37... axb5 {[%clk 0:00:20.1]} 38. axb5 {[%clk 0:00:36.9]} 38... cxb5
{[%clk 0:00:21]} 39. c6 {[%clk 0:00:37.4]} 39... b4 {[%clk 0:00:21.5]} 40. c7
{[%clk 0:00:37.7]} 40... Bxc7 {[%clk 0:00:22]} 41. Bxc7 {[%clk 0:00:38.4]} 41...
Kf6 {[%clk 0:00:22.3]} 42. Bd8+ {[%clk 0:00:37.1]} 42... Kg6 {[%clk 0:00:20.2]}
43. Bb6 {[%clk 0:00:28.2]} 43... b3 {[%clk 0:00:20.4]} 44. Bd4 {[%clk
0:00:27.7]} 44... Kh5 {[%clk 0:00:20.9]} 45. Bb2 {[%clk 0:00:21.1]} 45... f4
{[%clk 0:00:13.3]} 46. Bc3 {[%clk 0:00:15.2]} 46... fxg3 {[%clk 0:00:06.1]} 47.
hxg3 {[%clk 0:00:15.5]} 47... Kg6 {[%clk 0:00:06.6]} 48. Kg4 {[%clk 0:00:15.9]}
48... Kh6 {[%clk 0:00:06.6]} 49. Kf5 {[%clk 0:00:14.4]} 49... Kh5 {[%clk
0:00:07]} 50. Bb2 {[%clk 0:00:14.5]} 1-0

[Event "*** Titled Tuesday Blitz"]
[Site "Chess.com"]
[Date "2020.11.10"]
[Round "6"]
[White "arminmusovic"]
[Black "anon481216"]
[Result "1-0"]
[WhiteElo "2563"]
[BlackElo "2401"]
[TimeControl "180+1"]
[EndTime "11:10:27 PST"]
[Termination "arminmusovic won by checkmate"]

1. a3 {[%clk 0:03:00.9]} 1... g6 {[%clk 0:02:56.1]} 2. Nc3 {[%clk 0:03:00.7]}
2... Bg7 {[%clk 0:02:56.4]} 3. e4 {[%clk 0:03:01.3]} 3... c5 {[%clk 0:02:55.7]}
4. Bc4 {[%clk 0:03:01.5]} 4... Nc6 {[%clk 0:02:54.3]} 5. Ba2 {[%clk 0:03:01.5]}
5... e6 {[%clk 0:02:54.2]} 6. d3 {[%clk 0:03:01.7]} 6... Nge7 {[%clk 0:02:53.9]}
7. Bg5 {[%clk 0:03:00.3]} 7... h6 {[%clk 0:02:53.4]} 8. Bh4 {[%clk 0:03:00.9]}
8... O-O {[%clk 0:02:53.4]} 9. f4 {[%clk 0:03:00.7]} 9... d6 {[%clk 0:02:45.4]}
10. Nge2 {[%clk 0:03:00.9]} 10... Rb8 {[%clk 0:02:45.3]} 11. O-O {[%clk
0:02:59.7]} 11... b5 {[%clk 0:02:42.7]} 12. f5 {[%clk 0:02:54.8]} 12... exf5
{[%clk 0:02:41.1]} 13. exf5 {[%clk 0:02:54.8]} 13... Bxf5 {[%clk 0:02:37.4]} 14.
Rxf5 {[%clk 0:02:54.8]} 14... gxf5 {[%clk 0:02:36.8]} 15. Ng3 {[%clk 0:02:54.2]}
15... Qd7 {[%clk 0:02:30.5]} 16. Nh5 {[%clk 0:02:48.5]} 16... Bd4+ {[%clk
0:02:29.5]} 17. Kh1 {[%clk 0:02:47.1]} 17... Kh8 {[%clk 0:02:26.1]} 18. Qd2
{[%clk 0:02:42.1]} 18... Ng8 {[%clk 0:02:23.2]} 19. Nd5 {[%clk 0:02:16.1]} 19...
f6 {[%clk 0:02:02.9]} 20. c3 {[%clk 0:01:33.7]} 20... Be5 {[%clk 0:02:02.5]} 21.
Rf1 {[%clk 0:01:00.9]} 21... Qh7 {[%clk 0:01:13.5]} 22. Bb1 {[%clk 0:00:55]}
22... Qg6 {[%clk 0:00:58.3]} 23. Nhf4 {[%clk 0:00:44.9]} 23... Bxf4 {[%clk
0:00:56.9]} 24. Nxf4 {[%clk 0:00:45.8]} 24... Qg4 {[%clk 0:00:55.8]} 25. g3
{[%clk 0:00:45.8]} 25... Ne5 {[%clk 0:00:51.6]} 26. h3 {[%clk 0:00:45.7]} 26...
Qg7 {[%clk 0:00:48.1]} 27. Ne6 {[%clk 0:00:46]} 27... Qb7+ {[%clk 0:00:46.5]}
28. Qg2 {[%clk 0:00:46.1]} 28... Qxg2+ {[%clk 0:00:43.6]} 29. Kxg2 {[%clk
0:00:47]} 29... Rfe8 {[%clk 0:00:43.7]} 30. Nc7 {[%clk 0:00:46.3]} 30... Rec8
{[%clk 0:00:33.8]} 31. Nd5 {[%clk 0:00:46.6]} 31... Nd7 {[%clk 0:00:22.3]} 32.
d4 {[%clk 0:00:44.1]} 32... cxd4 {[%clk 0:00:19.7]} 33. Bxf5 {[%clk 0:00:43.9]}
33... Rb7 {[%clk 0:00:19.9]} 34. Nxf6 {[%clk 0:00:41.3]} 34... Ngxf6 {[%clk
0:00:18]} 35. Bxf6+ {[%clk 0:00:41.6]} 35... Kg8 {[%clk 0:00:18.3]} 36. Be6+
{[%clk 0:00:39.8]} 36... Kh7 {[%clk 0:00:18.2]} 37. Bxd4 {[%clk 0:00:36.4]}
37... Rf8 {[%clk 0:00:16.9]} 38. Re1 {[%clk 0:00:29.7]} 38... Nc5 {[%clk
0:00:15.4]} 39. Bd5 {[%clk 0:00:27.3]} 39... Rc7 {[%clk 0:00:12.7]} 40. h4
{[%clk 0:00:25.7]} 40... Nd3 {[%clk 0:00:12.5]} 41. Be4+ {[%clk 0:00:25]} 41...
Kg8 {[%clk 0:00:11.6]} 42. Bxd3 {[%clk 0:00:25.1]} 42... a5 {[%clk 0:00:12.2]}
43. Bxb5 {[%clk 0:00:23.4]} 43... Rb8 {[%clk 0:00:11.6]} 44. a4 {[%clk
0:00:23.6]} 44... Kf7 {[%clk 0:00:11.5]} 45. Rf1+ {[%clk 0:00:22.4]} 45... Kg6
{[%clk 0:00:11.5]} 46. Rf6+ {[%clk 0:00:22.4]} 46... Kh7 {[%clk 0:00:11.9]} 47.
Bd3+ {[%clk 0:00:21.7]} 47... Kg8 {[%clk 0:00:12.2]} 48. c4 {[%clk 0:00:19.6]}
48... Rb4 {[%clk 0:00:11.4]} 49. Bc3 {[%clk 0:00:19.2]} 49... Rxa4 {[%clk
0:00:11.2]} 50. Rxd6 {[%clk 0:00:18.7]} 50... Ra1 {[%clk 0:00:10.5]} 51. h5
{[%clk 0:00:15.6]} 51... a4 {[%clk 0:00:10.2]} 52. Bg6 {[%clk 0:00:15.6]} 52...
Rc1 {[%clk 0:00:07]} 53. Rd8# {[%clk 0:00:15.2]} 1-0

[Event "*** Titled Tuesday Blitz"]
[Site "Chess.com"]
[Date "2020.11.10"]
[Round "6"]
[White "vinniethepooh"]
[Black "NateSolon"]
[Result "0-1"]
[WhiteElo "2605"]
[BlackElo "2480"]
[TimeControl "180+1"]
[EndTime "11:10:28 PST"]
[Termination "NateSolon won on time"]

1. d4 {[%clk 0:03:00.9]} 1... Nf6 {[%clk 0:02:59.6]} 2. c4 {[%clk 0:03:01.2]}
2... e6 {[%clk 0:02:59.8]} 3. Nc3 {[%clk 0:03:01.6]} 3... Bb4 {[%clk 0:02:59.7]}
4. f3 {[%clk 0:03:02.2]} 4... c5 {[%clk 0:02:56.7]} 5. d5 {[%clk 0:03:02.2]}
5... O-O {[%clk 0:02:55.2]} 6. e4 {[%clk 0:03:02.3]} 6... d6 {[%clk 0:02:55.7]}
7. Bd3 {[%clk 0:03:02.7]} 7... exd5 {[%clk 0:02:54.7]} 8. cxd5 {[%clk
0:03:03.6]} 8... Re8 {[%clk 0:02:54.1]} 9. Ne2 {[%clk 0:03:04]} 9... Nbd7 {[%clk
0:02:53]} 10. O-O {[%clk 0:03:04.2]} 10... Ne5 {[%clk 0:02:49.7]} 11. Kh1 {[%clk
0:03:01.3]} 11... a6 {[%clk 0:02:48.1]} 12. Bg5 {[%clk 0:03:00.9]} 12... h6
{[%clk 0:02:46.4]} 13. Bh4 {[%clk 0:02:59.2]} 13... Ng6 {[%clk 0:02:45]} 14. Bf2
{[%clk 0:02:55.9]} 14... b5 {[%clk 0:02:44.1]} 15. a4 {[%clk 0:02:53.4]} 15...
bxa4 {[%clk 0:02:37.8]} 16. Rxa4 {[%clk 0:02:50.1]} 16... Ne5 {[%clk 0:02:28.9]}
17. Ng3 {[%clk 0:02:43]} 17... Nxd3 {[%clk 0:02:14.1]} 18. Qxd3 {[%clk
0:02:43.9]} 18... a5 {[%clk 0:02:14.7]} 19. Raa1 {[%clk 0:02:21.9]} 19... Ba6
{[%clk 0:02:14.4]} 20. Qd2 {[%clk 0:02:15.3]} 20... Bxf1 {[%clk 0:02:12.8]} 21.
Rxf1 {[%clk 0:02:16.2]} 21... a4 {[%clk 0:01:41.7]} 22. Qc1 {[%clk 0:01:38.9]}
22... a3 {[%clk 0:01:38.8]} 23. bxa3 {[%clk 0:01:38.5]} 23... Rxa3 {[%clk
0:01:31.8]} 24. Nce2 {[%clk 0:01:30.3]} 24... Qa5 {[%clk 0:01:29.1]} 25. Nf5
{[%clk 0:01:25.5]} 25... c4 {[%clk 0:01:03.4]} 26. Bd4 {[%clk 0:01:13.5]} 26...
Re5 {[%clk 0:00:21.2]} 27. Neg3 {[%clk 0:00:04.3]} 27... c3 {[%clk 0:00:19]} 28.
Nxh6+ {[%clk 0:00:04.3]} 28... gxh6 {[%clk 0:00:17.7]} 29. Qxh6 {[%clk
0:00:05.2]} 29... Ne8 {[%clk 0:00:14.7]} 30. Bxe5 {[%clk 0:00:03.3]} 30... dxe5
{[%clk 0:00:15.6]} 31. Nf5 {[%clk 0:00:03.8]} 31... Bf8 {[%clk 0:00:15.1]} 32.
Qg5+ {[%clk 0:00:04]} 32... Bg7 {[%clk 0:00:15]} 33. Qe7 {[%clk 0:00:03.7]}
33... Ra1 {[%clk 0:00:14.2]} 34. Qxe8+ {[%clk 0:00:03.8]} 34... Kh7 {[%clk
0:00:14.7]} 35. Ng3 {[%clk 0:00:03.8]} 35... Rxf1+ {[%clk 0:00:13.5]} 36. Nxf1
{[%clk 0:00:04.7]} 36... Qa1 {[%clk 0:00:14.1]} 37. Kg1 {[%clk 0:00:04.4]} 37...
c2 {[%clk 0:00:14.7]} 38. Qxf7 {[%clk 0:00:04.8]} 38... Qd4+ {[%clk 0:00:13.5]}
39. Kh1 {[%clk 0:00:05]} 39... c1=Q {[%clk 0:00:13]} 40. Qh5+ {[%clk 0:00:05.5]}
40... Qh6 {[%clk 0:00:13.2]} 41. Qf5+ {[%clk 0:00:05.8]} 41... Qg6 {[%clk
0:00:13.6]} 42. Qh3+ {[%clk 0:00:06.2]} 42... Bh6 {[%clk 0:00:12.5]} 43. Qd7+
{[%clk 0:00:06.1]} 43... Bg7 {[%clk 0:00:12.4]} 44. Qh3+ {[%clk 0:00:04.5]}
44... Qh6 {[%clk 0:00:12.9]} 45. Qf5+ {[%clk 0:00:04.6]} 45... Kh8 {[%clk
0:00:13.5]} 46. Qc8+ {[%clk 0:00:04.8]} 46... Bf8 {[%clk 0:00:14]} 47. Qf5
{[%clk 0:00:05]} 47... Qa1 {[%clk 0:00:12.6]} 48. Kg1 {[%clk 0:00:01.7]} 48...
Qe3+ {[%clk 0:00:12.4]} 0-1

[Event "*** Titled Tuesday Blitz"]
[Site "Chess.com"]
[Date "2020.11.10"]
[Round "6"]
[White "GM4life"]
[Black "Skat2704"]
[Result "1-0"]
[WhiteElo "2278"]
[BlackElo "2407"]
[TimeControl "180+1"]
[EndTime "11:10:28 PST"]
[Termination "GM4life won on time"]

1. e4 {[%clk 0:03:00.9]} 1... c6 {[%clk 0:02:59.9]} 2. d4 {[%clk 0:03:00.4]}
2... d5 {[%clk 0:02:59.4]} 3. e5 {[%clk 0:03:00.9]} 3... Bf5 {[%clk 0:02:58.6]}
4. h4 {[%clk 0:03:01.1]} 4... h5 {[%clk 0:02:58.1]} 5. c4 {[%clk 0:03:01.4]}
5... e6 {[%clk 0:02:57.4]} 6. Nc3 {[%clk 0:03:01.1]} 6... Ne7 {[%clk 0:02:54.9]}
7. Bg5 {[%clk 0:02:59.2]} 7... Nd7 {[%clk 0:02:51.1]} 8. Nge2 {[%clk 0:02:57.7]}
8... Qb6 {[%clk 0:02:42.2]} 9. Ng3 {[%clk 0:02:55.8]} 9... Bg6 {[%clk
0:02:40.6]} 10. Rc1 {[%clk 0:02:55.5]} 10... f6 {[%clk 0:02:33.8]} 11. exf6
{[%clk 0:02:54.2]} 11... gxf6 {[%clk 0:02:33.5]} 12. Be3 {[%clk 0:02:55.1]}
12... O-O-O {[%clk 0:02:30.8]} 13. Be2 {[%clk 0:02:46.2]} 13... Nf5 {[%clk
0:02:29.6]} 14. Nxf5 {[%clk 0:02:43.8]} 14... Bxf5 {[%clk 0:02:28.8]} 15. cxd5
{[%clk 0:02:42.1]} 15... exd5 {[%clk 0:02:21.6]} 16. Nxd5 {[%clk 0:02:40.5]}
16... Qa5+ {[%clk 0:02:00.8]} 17. Nc3 {[%clk 0:02:40.2]} 17... Ne5 {[%clk
0:01:46.8]} 18. Qb3 {[%clk 0:02:07]} 18... Ng4 {[%clk 0:01:40.9]} 19. Bxg4
{[%clk 0:01:23.1]} 19... hxg4 {[%clk 0:01:38]} 20. d5 {[%clk 0:01:21.3]} 20...
Rxd5 {[%clk 0:01:27.1]} 21. O-O {[%clk 0:01:14.2]} 21... Rd7 {[%clk 0:01:21.5]}
22. g3 {[%clk 0:00:56.5]} 22... Bc5 {[%clk 0:00:49.2]} 23. Bxc5 {[%clk
0:00:55.1]} 23... Qxc5 {[%clk 0:00:48.9]} 24. Ne4 {[%clk 0:00:46.3]} 24... Qe5
{[%clk 0:00:44.7]} 25. Nc5 {[%clk 0:00:44.6]} 25... Rdh7 {[%clk 0:00:38.2]} 26.
Rfe1 {[%clk 0:00:43.2]} 26... Qc7 {[%clk 0:00:33.6]} 27. Ne6 {[%clk 0:00:39.8]}
27... Bxe6 {[%clk 0:00:27.4]} 28. Qxe6+ {[%clk 0:00:39.1]} 28... Kb8 {[%clk
0:00:27.8]} 29. Qxf6 {[%clk 0:00:37.4]} 29... Ka8 {[%clk 0:00:19.7]} 30. Re4
{[%clk 0:00:36]} 30... Rg8 {[%clk 0:00:14.4]} 31. Rce1 {[%clk 0:00:32.7]} 31...
Rhh8 {[%clk 0:00:13.1]} 32. Qf5 {[%clk 0:00:28.8]} 32... a6 {[%clk 0:00:09.5]}
33. Rxg4 {[%clk 0:00:28.4]} 33... Rf8 {[%clk 0:00:09.6]} 34. Qe5 {[%clk
0:00:27.4]} 34... Qb6 {[%clk 0:00:09.3]} 35. Rf4 {[%clk 0:00:25.8]} 35... Rd8
{[%clk 0:00:08.8]} 36. Qe3 {[%clk 0:00:20.1]} 36... Qb5 {[%clk 0:00:07.4]} 37.
Qe2 {[%clk 0:00:18.9]} 37... Qd5 {[%clk 0:00:06.2]} 38. b3 {[%clk 0:00:18.8]}
38... Qd7 {[%clk 0:00:06]} 39. Qe5 {[%clk 0:00:17.8]} 39... Rhe8 {[%clk
0:00:05.1]} 40. Qc3 {[%clk 0:00:16.1]} 40... Rg8 {[%clk 0:00:05.1]} 41. Rfe4
{[%clk 0:00:15.4]} 41... Qd5 {[%clk 0:00:04.6]} 42. Re7 {[%clk 0:00:15.3]} 42...
Qf5 {[%clk 0:00:04.3]} 43. Qb4 {[%clk 0:00:15.4]} 43... Rb8 {[%clk 0:00:04]} 44.
Qb6 {[%clk 0:00:14.4]} 44... Rgf8 {[%clk 0:00:03.9]} 45. Rd7 {[%clk 0:00:12.7]}
45... Qc2 {[%clk 0:00:03.4]} 46. Ree7 {[%clk 0:00:12.1]} 46... Qc1+ {[%clk
0:00:02.6]} 47. Kh2 {[%clk 0:00:12.3]} 47... Qf1 {[%clk 0:00:02.2]} 48. Rd2
{[%clk 0:00:12.3]} 1-0